fUSD/lending_fUSD_20240530
["ID","MTS","AMOUNT","RATE_DAILY","PERIOD"]
[328197903,1717048231826,-500.0,0.00017248,2]
[328197904,1717048231836,-500.0,0.00017248,2]
[328197905,1717048231845,-500.0,0.00017248,2]
[328197906,1717048231854,-500.0,0.00017248,2]
[328197907,1717048231863,-500.0,0.00017248,2]
[328197908,1717048231872,-500.0,0.00017248,2]
[328197909,1717048231882,-500.0,0.00017248,2]
[328197910,1717048231891,-500.0,0.00017248,2]
[328197911,1717048231901,-500.0,0.00017248,2]
[328197913,1717048232014,-500.0,0.00017248,2]
[328197914,1717048232033,-500.0,0.00017248,2]
[328197915,1717048232042,-500.0,0.00017248,2]
[328197916,1717048232051,-500.0,0.00017248,2]
[328197917,1717048232060,-500.0,0.00017248,2]
[328197918,1717048232070,-500.0,0.00017248,2]
[328197919,1717048232079,-500.0,0.00017248,2]
[328197920,1717048232088,-500.0,0.00017248,2]
[328197921,1717048232097,-500.0,0.00017248,2]
[328197922,1717048232106,-500.0,0.00017248,2]
[328197923,1717048232116,-500.0,0.00017248,2]
[328197924,1717048232125,-500.0,0.00017248,2]
[328197925,1717048232135,-500.0,0.00017248,2]
[328197926,1717048232144,-500.0,0.00017248,2]
[328197927,1717048232154,-500.0,0.00017248,2]
[328197928,1717048232163,-500.0,0.00017248,2]
[328197929,1717048232172,-500.0,0.00017248,2]
[328197930,1717048232186,-500.0,0.00017248,2]
[328197931,1717048232195,-500.0,0.00017248,2]
[328197932,1717048232204,-500.0,0.00017248,2]
[328197933,1717048232214,-500.0,0.00017248,2]
[328197934,1717048232224,-500.0,0.00017248,2]
[328197935,1717048232233,-500.0,0.00017248,2]
[328197936,1717048232242,-500.0,0.00017248,2]
[328197937,1717048232251,-500.0,0.00017248,2]
[328197938,1717048232262,-500.0,0.00017248,2]
[328197939,1717048232272,-500.0,0.00017248,2]
[328197940,1717048232281,-500.0,0.00017248,2]
[328197941,1717048232290,-3745.12416806,0.0002,2]
[328197942,1717048232299,-4891.93757754,0.0002,2]
[328197943,1717048232308,-499.99,0.0002,2]
[328197944,1717048232317,-364.24,0.00021699,2]
[328197945,1717048232326,-1386.41,0.00021699,2]
[328197946,1717048232336,-999.99,0.00021699,2]
[328197947,1717048232345,-150.0,0.00021699,2]
[328197948,1717048232354,-158.2,0.00021714,3]
[328197949,1717048232363,-158.2,0.00022567,3]
[328197950,1717048232372,-158.2,0.00023421,3]
[328197951,1717048232382,-425.45051364,0.00024,3]
[328197952,1717048232391,-158.2,0.00024274,5]
[328197953,1717048232401,-348.25,0.00024317,2]
[328197954,1717048232411,-521.49,0.00025,3]
[328197955,1717048232420,-158.2,0.00025127,5]
[328197956,1717048232430,-158.2,0.0002598,5]
[328197957,1717048232439,-422.71,0.00026235,2]
[328197958,1717048232448,-250.0,0.00026238,2]
[328197959,1717048232457,-250.0,0.00026238,2]
[328197960,1717048232467,-1500.0,0.0002629,2]
[328197961,1717048232476,-174.43,0.00026317,2]
[328197962,1717048232485,-23890.0,0.00026426,2]
[328197963,1717048232494,-488.38,0.00026439,2]
[328197964,1717048232504,-686.95,0.00026549,2]
[328197965,1717048232513,-936.65,0.00026563,2]
[328197966,1717048232523,-179.3,0.00026567,2]
[328197967,1717048232533,-500.0,0.00026569,2]
[328197968,1717048232542,-348.25,0.00026581,2]
[328197969,1717048232553,-235.75,0.00026607,2]
[328197970,1717048232562,-1274.06881089,0.0002664,2]
[328197971,1717048232571,-1000.0,0.00026641,2]
[328197972,1717048232580,-250.0,0.00026684,2]
[328197973,1717048232590,-150.0,0.0002678,2]
[328197974,1717048232599,-322.86,0.00026796,2]
[328197975,1717048232608,-158.2,0.00026834,5]
[328197976,1717048232618,-159.26,0.00026889,2]
[328197977,1717048232627,-178.19,0.00027095,2]
[328197978,1717048232637,-4020.65057636,0.00027389,2]
[328197979,1717048232647,-805.91709047,0.0002739,2]
[328197980,1717048232656,-1147.31,0.00027421,2]
[328197981,1717048232665,-158.2,0.00027687,7]
[328197982,1717048232675,-1000.0,0.00027905,2]
[328197983,1717048232685,-302.59,0.00028356,2]
[328197984,1717048232695,-163.81,0.00028356,2]
[328197985,1717048232704,-150.0,0.00028356,2]
[328197986,1717048232714,-150.0,0.00028356,2]
[328197987,1717048232723,-150.0,0.00028356,2]
[328197988,1717048232733,-150.0,0.00028356,2]
[328197989,1717048232744,-150.0,0.00028356,2]
[328197990,1717048232754,-150.0,0.00028356,2]
[328197991,1717048232764,-871.43,0.00028493,2]
[328197992,1717048232774,-871.43,0.00028493,2]
[328197993,1717048232785,-832.78,0.00028493,2]
[328197994,1717048232795,-832.78,0.00028493,2]
[328197995,1717048232805,-158.2,0.0002854,7]
[328197996,1717048232814,-348.25,0.00028845,2]
[328197997,1717048232823,-150.0,0.00028971,2]
[328197998,1717048232834,-422.71,0.00028975,2]
[328197999,1717048232844,-1000.0,0.00029,5]
[328198000,1717048232854,-1000.0,0.00029,5]
[328198001,1717048232863,-1011.0,0.00029,5]
[328198002,1717048232873,-1000.0,0.00029,5]
[328198003,1717048232883,-1000.0,0.00029,5]
[328198004,1717048232892,-35000.0,0.00029,2]
[328198005,1717048232902,-889.85079915,0.00029077,2]
[328198006,1717048232911,-15735.8694,0.00029078,2]
[328198007,1717048232920,-704.8,0.00029178,2]
[328198008,1717048232931,-312.45,0.00029178,2]
[328198009,1717048232940,-150.0,0.00029178,2]
[328198010,1717048232949,-301.75,0.00029178,2]
[328198011,1717048232959,-842.86,0.00029178,2]
[328198012,1717048232968,-300.0,0.00029178,2]
[328198013,1717048232978,-300.0,0.00029178,2]
[328198014,1717048232988,-300.0,0.00029178,2]
[328198015,1717048232997,-257.3266,0.00029352,2]
[328198016,1717048233006,-158.2,0.00029393,7]
[328198017,1717048233016,-416.39,0.00029452,2]
[328198018,1717048233025,-871.43,0.00029452,2]
[328198019,1717048233035,-871.43,0.00029452,2]
[328198020,1717048233044,-416.39,0.00029452,2]
[328198021,1717048233053,-871.43,0.00029452,2]
[328198022,1717048233063,-871.43,0.00029452,2]
[328198023,1717048233072,-416.39,0.00029452,2]
[328198024,1717048233081,-416.39,0.00029452,2]
[328198025,1717048233091,-416.39,0.00029452,2]
[328198026,1717048233101,-871.43,0.00029452,2]
[328198027,1717048233111,-1742.86,0.00029452,2]
[328198028,1717048233120,-416.39,0.00029452,2]
[328198029,1717048233130,-416.39,0.00029452,2]
[328198030,1717048233140,-871.43,0.00029452,2]
[328198031,1717048233150,-832.78,0.00029452,2]
[328198032,1717048233160,-871.43,0.00029452,2]
[328198033,1717048233169,-416.39,0.00029452,2]
[328198034,1717048233182,-871.43,0.00029452,2]
[328198035,1717048233192,-416.39,0.00029452,2]
[328198036,1717048233201,-871.43,0.00029452,2]
[328198037,1717048233211,-1066.18,0.00029452,2]
[328198038,1717048233222,-825.23,0.00029452,2]
[328198039,1717048233231,-150.0,0.00029504,2]
[328198040,1717048233240,-150.0,0.00029608,2]
[328198041,1717048233249,-2786.0175802,0.00029699,2]
[328198042,1717048233261,-2500.0,0.000297,2]
[328198043,1717048233271,-163.87246877,0.000297,2]
[328198044,1717048233281,-207.23311575,0.000297,2]
[328198045,1717048233291,-154.14110316,0.00029725,2]
[328198046,1717048233300,-154.6464133,0.00029787,2]
[328198047,1717048233309,-4074.9648,0.00029797,2]
[328198048,1717048233319,-164.2758,0.00029797,2]
[328198049,1717048233329,-971.20284283,0.00029798,2]
[328198050,1717048233339,-102839.3765,0.000298,2]
[328198051,1717048233348,-19842.419,0.000298,2]
[328198052,1717048233356,-776.4669,0.000298,2]
[328198053,1717048233366,-312.42043894,0.000298,2]
[328198054,1717048233375,-150.0,0.00029813,2]
[328198055,1717048233386,-166.65634609,0.00029859,2]
[328198056,1717048233396,-168.66820434,0.00029867,2]
[328198057,1717048233405,-150.0,0.0002987,2]
[328198058,1717048233415,-242.58865285,0.00029896,2]
[328198059,1717048233424,-118152.6064,0.00029897,2]
[328198060,1717048233433,-4475.0628,0.00029897,2]
[328198061,1717048233443,-8201.2761,0.00029897,2]
[328198062,1717048233453,-14644.9164,0.000299,2]
[328198063,1717048233462,-24923.4669,0.000299,2]
[328198064,1717048233471,-7500.0,0.000299,2]
[328198065,1717048233480,-357.0,0.00029966,2]
[328198066,1717048233489,-614.0,0.00029966,2]
[328198067,1717048233499,-1225.0,0.00029966,2]
[328198068,1717048233509,-1239.432,0.00029966,2]
[328198069,1717048233605,-440.0,0.00029966,2]
[328198070,1717048233615,-1265.0,0.00029966,2]
[328198071,1717048233623,-445.0,0.00029966,2]
[328198072,1717048233634,-435.224,0.00029966,2]
[328198073,1717048233644,-5769.0,0.00029966,2]
[328198074,1717048233655,-150.0,0.00029966,2]
[328198075,1717048233665,-4288.9422072,0.00029987,2]
[328198076,1717048233675,-150.82,0.0002999,2]
[328198077,1717048233685,-317.40981312,0.00029992,2]
[328198078,1717048233695,-44889.1390151,0.00029993,2]
[328198079,1717048233706,-2288.7183293,0.00029993,2]
[328198080,1717048233715,-5220.5982121,0.00029993,2]
[328198081,1717048233725,-2323.7751933,0.00029993,2]
[328198082,1717048233734,-290.618125,0.00029993,7]
[328198083,1717048233743,-98.26596926,0.00029993,7]
[328198084,1717048233756,-52.73403074,0.00029993,7]
[328198085,1717048233766,-1399.66945644,0.00029997,2]
[328198086,1717048233775,-2325.95992753,0.00029998,2]
[328198087,1717048233784,-2650.8003572,0.00029998,2]
[328198088,1717048233792,-271.9292402,0.00029998,2]
[328198089,1717048233801,-156.16579106,0.00029999,2]
[328198090,1717048233811,-188.89602357,0.00029999,2]
[328198091,1717048233823,-2023.26768313,0.00029999,2]
[328198092,1717048233832,-1040.82619804,0.00029999,2]
[328198093,1717048233842,-1201.28646968,0.00029999,2]
[328198094,1717048233851,-446.11901282,0.00029999,2]
[328198095,1717048233860,-151.0,0.00029999,7]
[328198096,1717048233870,-149185.49388229,0.0003,2]
[328198097,1717048233879,-16111.0308155,0.0003,2]
[328198098,1717048233891,-6370.88873846,0.0003,2]
[328198099,1717048233925,-667.36237526,0.0003,2]
[328198100,1717048233936,-735.8,0.0003,2]
[328198101,1717048233947,-418.90217464,0.0003,2]
[328198102,1717048233959,-544.0998858,0.0003,2]
[328198103,1717048233971,-151794.91601034,0.0003,2]
[328198104,1717048233980,-286.78960482,0.0003,4]
[328198105,1717048233990,-5000.0,0.0003,4]
[328198106,1717048233999,-687.18209531,0.0003,4]
[328198107,1717048234009,-1271.80088443,0.0003,4]
[328198108,1717048234018,-2626.0,0.0003,30]
[328198109,1717048234029,-151.41,0.0003,7]
[328198110,1717048234038,-196.88,0.0003,2]
[328198111,1717048234047,-151.0,0.0003,7]
[328198112,1717048234058,-151.0,0.0003,7]
[328198113,1717048234068,-151.0,0.0003,7]
[328198114,1717048234078,-151.0,0.0003,7]
[328198115,1717048234088,-3000.0,0.0003,2]
[328198116,1717048234097,-207.0,0.0003,2]
[328198117,1717048234107,-151.0,0.0003,7]
[328198118,1717048234117,-151.0,0.0003,7]
[328198119,1717048234127,-150.0,0.0003,2]
[328198120,1717048234136,-151.0,0.00030004,7]
[328198121,1717048234146,-6979.9484852,0.00030007,2]
[328198122,1717048234155,-150.0,0.00030019,2]
[328198123,1717048234164,-22697.6708641,0.00030027,2]
[328198124,1717048234174,-150.0,0.00030042,2]
[328198125,1717048234187,-300.0,0.00030055,2]
[328198126,1717048234197,-301.05,0.00030055,2]
[328198127,1717048234207,-152.34218526,0.00030061,7]
[328198128,1717048234217,-150.0,0.00030072,2]
[328198129,1717048234228,-150.0,0.00030084,2]
[328198130,1717048234237,-207.23311567,0.00030089,10]
[328198131,1717048234247,-150.82,0.0003009,2]
[328198132,1717048234260,-500.0,0.000301,2]
[328198133,1717048234270,-500.0,0.000301,2]
[328198134,1717048234280,-500.0,0.000301,2]
[328198135,1717048234289,-500.0,0.000301,2]
[328198136,1717048234298,-500.0,0.000301,2]
[328198137,1717048234307,-500.0,0.000301,2]
[328198138,1717048234317,-500.0,0.000301,2]
[328198139,1717048234326,-500.0,0.000301,2]
[328198140,1717048234335,-500.0,0.000301,2]
[328198141,1717048234344,-500.0,0.000301,2]
[328198142,1717048234353,-500.0,0.000301,2]
[328198143,1717048234363,-500.0,0.000301,2]
[328198144,1717048234372,-500.0,0.000301,2]
[328198145,1717048234381,-500.0,0.000301,2]
[328198146,1717048234390,-500.0,0.000301,2]
[328198147,1717048234400,-500.0,0.000301,2]
[328198148,1717048234409,-500.0,0.000301,2]
[328198149,1717048234418,-500.0,0.000301,2]
[328198150,1717048234428,-500.0,0.000301,2]
[328198151,1717048234437,-500.0,0.000301,2]
[328198152,1717048234446,-500.0,0.000301,2]
[328198153,1717048234456,-500.0,0.000301,2]
[328198154,1717048234467,-500.0,0.000301,2]
[328198155,1717048234475,-500.0,0.000301,2]
[328198156,1717048234486,-500.0,0.000301,2]
[328198157,1717048234495,-500.0,0.000301,2]
[328198158,1717048234505,-500.0,0.000301,2]
[328198159,1717048234515,-519.7,0.000301,2]
[328198160,1717048234525,-518.08,0.000301,2]
[328198161,1717048234536,-500.0,0.000301,2]
[328198162,1717048234545,-500.0,0.000301,2]
[328198163,1717048234555,-500.0,0.000301,2]
[328198164,1717048234566,-500.0,0.000301,2]
[328198165,1717048234577,-500.0,0.000301,2]
[328198166,1717048234588,-500.0,0.000301,2]
[328198167,1717048234597,-500.0,0.000301,2]
[328198168,1717048234606,-500.0,0.000301,2]
[328198169,1717048234617,-500.0,0.000301,2]
[328198170,1717048234627,-500.0,0.000301,2]
[328198171,1717048234636,-500.0,0.000301,2]
[328198172,1717048234645,-500.0,0.000301,2]
[328198173,1717048234655,-500.0,0.000301,2]
[328198174,1717048234664,-500.0,0.000301,2]
[328198175,1717048234673,-500.0,0.000301,2]
[328198176,1717048234682,-500.0,0.000301,2]
[328198177,1717048234691,-500.0,0.000301,2]
[328198178,1717048234710,-500.0,0.000301,2]
[328198179,1717048234730,-500.0,0.000301,2]
[328198180,1717048234753,-500.0,0.000301,2]
[328198181,1717048234774,-500.0,0.000301,2]
[328198182,1717048234796,-500.0,0.000301,2]
[328198183,1717048234817,-500.0,0.000301,2]
[328198184,1717048234838,-500.0,0.000301,2]
[328198185,1717048234859,-500.0,0.000301,2]
[328198186,1717048234882,-500.0,0.000301,2]
[328198187,1717048234905,-500.0,0.000301,2]
[328198188,1717048234924,-500.0,0.000301,2]
[328198189,1717048234933,-500.0,0.000301,2]
[328198190,1717048234942,-500.0,0.000301,2]
[328198191,1717048234951,-500.0,0.000301,2]
[328198192,1717048234960,-500.0,0.000301,2]
[328198193,1717048234969,-500.0,0.000301,2]
[328198194,1717048234979,-500.0,0.000301,2]
[328198195,1717048234988,-500.0,0.000301,2]
[328198196,1717048234998,-500.0,0.000301,2]
[328198197,1717048235007,-500.0,0.000301,2]
[328198198,1717048235017,-500.0,0.000301,2]
[328198199,1717048235026,-500.0,0.000301,2]
[328198200,1717048235036,-500.0,0.000301,2]
[328198201,1717048235045,-500.0,0.000301,2]
[328198202,1717048235054,-500.0,0.000301,2]
[328198203,1717048235065,-500.0,0.000301,2]
[328198204,1717048235074,-500.0,0.000301,2]
[328198205,1717048235083,-500.0,0.000301,2]
[328198206,1717048235093,-500.0,0.000301,2]
[328198207,1717048235102,-500.0,0.000301,2]
[328198208,1717048235198,-500.0,0.000301,2]
[328198209,1717048235208,-500.0,0.000301,2]
[328198210,1717048235217,-500.0,0.000301,2]
[328198211,1717048235229,-500.0,0.000301,2]
[328198212,1717048235239,-500.0,0.000301,2]
[328198213,1717048235249,-500.0,0.000301,2]
[328198214,1717048235260,-500.0,0.000301,2]
[328198215,1717048235269,-500.0,0.000301,2]
[328198216,1717048235279,-500.0,0.000301,2]
[328198217,1717048235288,-500.0,0.000301,2]
[328198218,1717048235298,-500.0,0.000301,2]
[328198219,1717048235309,-500.0,0.000301,2]
[328198220,1717048235319,-500.0,0.000301,2]
[328198221,1717048235329,-500.0,0.000301,2]
[328198222,1717048235338,-500.0,0.000301,2]
[328198223,1717048235348,-500.0,0.000301,2]
[328198224,1717048235357,-500.0,0.000301,2]
[328198225,1717048235366,-500.0,0.000301,2]
[328198226,1717048235376,-500.0,0.000301,2]
[328198227,1717048235386,-500.0,0.000301,2]
[328198228,1717048235395,-500.0,0.000301,2]
[328198229,1717048235406,-500.0,0.000301,2]
[328198230,1717048235415,-500.0,0.000301,2]
[328198231,1717048235424,-500.0,0.000301,2]
[328198232,1717048235434,-500.0,0.000301,2]
[328198233,1717048235444,-500.0,0.000301,2]
[328198234,1717048235454,-500.0,0.000301,2]
[328198235,1717048235463,-500.0,0.000301,2]
[328198236,1717048235472,-500.0,0.000301,2]
[328198237,1717048235482,-500.0,0.000301,2]
[328198238,1717048235492,-500.0,0.000301,2]
[328198239,1717048235502,-500.0,0.000301,2]
[328198240,1717048235511,-500.0,0.000301,2]
[328198241,1717048235519,-500.0,0.000301,2]
[328198242,1717048235529,-500.0,0.000301,2]
[328198243,1717048235538,-500.0,0.000301,2]
[328198244,1717048235549,-500.0,0.000301,2]
[328198245,1717048235559,-500.0,0.000301,2]
[328198246,1717048235569,-500.0,0.000301,2]
[328198247,1717048235579,-500.0,0.000301,2]
[328198248,1717048235588,-500.0,0.000301,2]
[328198249,1717048235598,-500.0,0.000301,2]
[328198250,1717048235607,-500.0,0.000301,2]
[328198251,1717048235617,-500.0,0.000301,2]
[328198252,1717048235626,-500.0,0.000301,2]
[328198253,1717048235635,-500.0,0.000301,2]
[328198254,1717048235647,-500.0,0.000301,2]
[328198255,1717048235656,-500.0,0.000301,2]
[328198256,1717048235666,-500.0,0.000301,2]
[328198257,1717048235676,-500.0,0.000301,2]
[328198258,1717048235686,-500.0,0.000301,2]
[328198259,1717048235697,-500.0,0.000301,2]
[328198260,1717048235706,-500.0,0.000301,2]
[328198261,1717048235716,-500.0,0.000301,2]
[328198262,1717048235725,-500.0,0.000301,2]
[328198263,1717048235735,-500.0,0.000301,2]
[328198264,1717048235744,-500.0,0.000301,2]
[328198265,1717048235756,-500.0,0.000301,2]
[328198266,1717048235767,-500.0,0.000301,2]
[328198267,1717048235776,-500.0,0.000301,2]
[328198268,1717048235786,-500.0,0.000301,2]
[328198269,1717048235795,-500.0,0.000301,2]
[328198270,1717048235805,-500.0,0.000301,2]
[328198271,1717048235814,-500.0,0.000301,2]
[328198272,1717048235823,-500.0,0.000301,2]
[328198273,1717048235834,-500.0,0.000301,2]
[328198274,1717048235845,-500.0,0.000301,2]
[328198275,1717048235854,-500.0,0.000301,2]
[328198276,1717048235863,-500.0,0.000301,2]
[328198277,1717048235873,-500.0,0.000301,2]
[328198278,1717048235882,-500.0,0.000301,2]
[328198279,1717048235891,-500.0,0.000301,2]
[328198280,1717048235901,-500.0,0.000301,2]
[328198281,1717048235911,-500.0,0.000301,2]
[328198282,1717048235920,-500.0,0.000301,2]
[328198283,1717048235929,-500.0,0.000301,2]
[328198284,1717048235940,-500.0,0.000301,2]
[328198285,1717048235949,-500.0,0.000301,2]
[328198286,1717048235958,-500.0,0.000301,2]
[328198287,1717048235967,-557.09,0.000301,2]
[328198288,1717048235979,-500.0,0.000301,2]
[328198289,1717048235988,-500.0,0.000301,2]
[328198290,1717048235997,-500.0,0.000301,2]
[328198291,1717048236005,-500.0,0.000301,2]
[328198292,1717048236014,-500.0,0.000301,2]
[328198293,1717048236023,-500.0,0.000301,2]
[328198294,1717048236031,-500.0,0.000301,2]
[328198295,1717048236040,-603.56,0.000301,2]
[328198296,1717048236049,-500.0,0.000301,2]
[328198297,1717048236058,-151.0,0.000301,7]
[328198298,1717048236068,-416.39,0.0003011,2]
[328198299,1717048236077,-1055.31,0.0003011,2]
[328198300,1717048236087,-156.88009327,0.0003012,7]
[328198301,1717048236096,-150.0,0.00030124,2]
[328198302,1717048236105,-453.713527,0.00030137,7]
[328198303,1717048236114,-453.713527,0.00030137,7]
[328198304,1717048236123,-453.713527,0.00030137,7]
[328198305,1717048236132,-453.713527,0.00030137,7]
[328198306,1717048236142,-453.713527,0.00030137,7]
[328198307,1717048236154,-453.713527,0.00030137,7]
[328198308,1717048236163,-453.713527,0.00030137,7]
[328198309,1717048236172,-453.713527,0.00030137,7]
[328198310,1717048236185,-453.713527,0.00030137,7]
[328198311,1717048236195,-453.713527,0.00030137,7]
[328198312,1717048236204,-312.42043892,0.0003014,2]
[328198313,1717048236213,-150.0,0.00030148,2]
[328198314,1717048236223,-151.30123721,0.00030213,7]
[328198315,1717048236232,-158.2,0.00030247,7]
[328198316,1717048236241,-150.0,0.00030334,2]
[328198317,1717048236251,-150.0,0.00030335,2]
[328198318,1717048236262,-150.0,0.00030346,2]
[328198319,1717048236272,-150.0,0.00030354,2]
[328198320,1717048236282,-2608.61583779,0.00030378,4]
[328198321,1717048236291,-224.0,0.000304,2]
[328198322,1717048236300,-354.0,0.000304,2]
[328198323,1717048236310,-1000.0,0.000304,2]
[328198324,1717048236319,-1742.86,0.00030411,2]
[328198325,1717048236329,-150.0,0.00030414,2]
[328198326,1717048236338,-207.23311567,0.00030478,10]
[328198327,1717048236348,-150.0,0.00030494,2]
[328198328,1717048236358,-836.58,0.0003052,2]
[328198329,1717048236367,-150.0,0.00030523,2]
[328198330,1717048236376,-150.0,0.00030536,2]
[328198331,1717048236385,-525.06,0.00030543,2]
[328198332,1717048236395,-150.0,0.00030553,2]
[328198333,1717048236405,-150.0,0.0003063,2]
[328198334,1717048236414,-150.0,0.00030644,2]
[328198335,1717048236423,-152.0,0.00030778,3]
[328198336,1717048236432,-11637.27525965,0.00030788,2]
[328198337,1717048236441,-150.0,0.0003079,2]
[328198338,1717048236450,-154.6464133,0.00030797,7]
[328198339,1717048236460,-536.28806886,0.000308,11]
[328198340,1717048236469,-10420.23854388,0.000308,2]
[328198341,1717048236478,-150.0,0.00030822,2]
[328198342,1717048236568,-150.0,0.00030849,2]
[328198343,1717048236578,-150.0,0.00030849,2]
[328198344,1717048236587,-150.0,0.00030849,2]
[328198345,1717048236596,-150.0,0.00030849,2]
[328198346,1717048236605,-150.0,0.00030849,2]
[328198347,1717048236615,-150.0,0.00030849,2]
[328198348,1717048236625,-150.0,0.00030849,2]
[328198349,1717048236634,-214.74128508,0.00030898,2]
[328198350,1717048236644,-168.37020436,0.00030898,2]
[328198351,1717048236654,-1000.0,0.000309,2]
[328198352,1717048236663,-163.87246877,0.000309,2]
[328198353,1717048236673,-8124.14340545,0.0003098,2]
[328198354,1717048236682,-150.82,0.00030988,2]
[328198355,1717048236691,-150.82,0.00030988,2]
[328198356,1717048236700,-150.82,0.0003099,2]
[328198357,1717048236710,-150.01,0.00030997,2]
[328198358,1717048236719,-3224.27880506,0.00030997,2]
[328198359,1717048236728,-453.713527,0.00030997,7]
[328198360,1717048236737,-453.713527,0.00030997,7]
[328198361,1717048236746,-418.02015228,0.00030998,2]
[328198362,1717048236756,-286.26535666,0.00030998,4]
[328198363,1717048236765,-214.96394753,0.00030998,4]
[328198364,1717048236774,-1480.07046795,0.00030998,4]
[328198365,1717048237073,-259.86200001,0.00030998,4]
[328198366,1717048237085,-357.4799971,0.00030998,4]
[328198367,1717048237118,-717.86875898,0.00030998,4]
[328198368,1717048237128,-64.08144025,0.00030998,4]
[328198369,1717048237140,-1183.53755166,0.00030998,4]
[328198370,1717048237151,-155.0,0.00030998,4]
[328198371,1717048237160,-269.85025607,0.00030998,4]
[328198372,1717048237170,-155.74020377,0.00030998,4]
[328198373,1717048237185,-366.32184138,0.00030998,4]
[328198374,1717048237197,-709.59469623,0.00030998,4]
[328198375,1717048237206,-117.54242662,0.00030998,4]
[328198376,1717048237220,-37.85805225,0.00030998,4]
[328198377,1717048237229,-155.0,0.00030998,2]
[328198378,1717048237239,-678.69469165,0.00030998,2]
[328198379,1717048237250,-1382.79356823,0.00030998,2]
[328198380,1717048237263,-69110.1521623,0.00030998,2]
[328198400,1717048238856,-150.0,0.00029587,2]
[328198401,1717048238865,-150.0,0.00029895,2]
[328198402,1717048238875,-150.0,0.0002996,2]
[328198403,1717048238884,-150.0,0.00029991,2]
[328198404,1717048238894,-500.0,0.00030139,2]
[328198405,1717048238904,-175.64122835,0.00030139,2]
[328198406,1717048238913,-500.0,0.00030139,2]
[328198407,1717048238922,-520.49208257,0.00030139,2]
[328198408,1717048238931,-500.0,0.00030139,2]
[328198409,1717048238940,-500.0,0.00030139,2]
[328198410,1717048238949,-500.0,0.00030139,2]
[328198411,1717048238958,-500.0,0.00030139,2]
[328198412,1717048238967,-500.0,0.00030139,2]
[328198413,1717048238976,-500.0,0.00030139,2]
[328198414,1717048238985,-500.0,0.00030139,2]
[328198415,1717048238995,-500.0,0.00030139,2]
[328198416,1717048239004,-500.0,0.00030139,2]
[328198417,1717048239013,-500.0,0.00030139,2]
[328198418,1717048239022,-500.0,0.00030139,2]
[328198419,1717048239032,-150.0,0.0003016,2]
[328198420,1717048239041,-150.0,0.00030283,2]
[328198421,1717048239051,-150.0,0.00030345,2]
[328198422,1717048239060,-312.42043892,0.0003048,2]